Workbook

Sheet Мног
B1: Первенство КДЮСШ Авиатор по легкоатлетическим двоеборьям | H1: 24-27.10.2018
C3: Многоборье №1 Бег 50м+ Бег 200м
B4: Девушки 2003-2004
A5: М | B5: Фамилия Имя | C5: Дата рожд | E5: 50м | F5: очки | G5: разряд | H5: 200м | I5: очки | J5: разряд | K5: сумма | L5: тренер
A6: 1 | B6: Хакимуллина Диана | C6: 2004-10-15 | D6: 03-04 | E6: 7.69 | F6: 449 | H6: 31.84 | I6: 261 | K6: =F6+I6 -> 710 | L6: Файсханов Р.Р.
A7: 2 | B7: Зарипова Регина | C7: 2004-12-12 | D7: 03-04 | E7: 7.76 | F7: 430 | H7: 32.89 | I7: 223 | K7: 653 | L7: Файсханов Р.Р.
A8: 3 | B8: Хабибуллина Венера | C8: 2004-09-10 | D8: 03-04 | E8: 7.68 | F8: 451 | H8: 34.1 | I8: 183 | K8: 634 | L8: Сафиуллина Г.Г.
A9: 4 | B9: Хасанова Камиля | C9: 2004-12-07 | D9: 03-04 | E9: 8.1 | F9: 332 | H9: 33.39 | I9: 206 | K9: 538 | L9: Сафиуллина Г.Г.
A10: 5 | B10: Галимова Сабина | C10: 2004-12-03 | D10: 03-04 | E10: 8.47 | F10: 232 | H10: 36.08 | I10: 132 | K10: 364 | L10: Сафиуллина Г.Г.
A11: 6 | B11: Низамиева Камилла | C11: 2004-12-05 | D11: 03-04 | E11: 8.98 | F11: 124 | H11: 38.37 | I11: 84 | K11: 208 | L11: Сафиуллина Г.Г.
A12: 7 | B12: Садыкова Бибинур | C12: 2004-06-10 | D12: 03-04 | E12: 9.06 | F12: 108 | H12: 41.85 | I12: 33 | K12: 141 | L12: Сафиуллина Г.Г.
B14: Девушки 2005-2006
A15: М | B15: Фамилия Имя | C15: Дата рожд | E15: 50м | F15: очки | G15: разряд | H15: 200м | I15: очки | J15: разряд | K15: сумма | L15: тренер
A16: 1 | B16: Гадельшина Алсу | C16: 2005-03-28 | D16: 05-06 | E16: 7.37 | F16: 541 | H16: 29.5 | I16: 377 | K16: =F16+I16 -> 918 | L16: Рынина Е.И.
A17: 2 | B17: Квасова София | C17: 2006-08-01 | D17: 05-06 | E17: 8.28 | F17: 283 | H17: 35.37 | I17: 147 | K17: 430 | L17: Сафиуллина Г.Г.
A18: 3 | B18: Миронова Елизавета | C18: 10.07.2006 | D18: 05-06 | E18: 8.81 | F18: 158 | H18: 36.07 | I18: 132 | K18: 290 | L18: Сафиуллина Г.Г.
A19: 4 | B19: Щеглова Анастасия | C19: 2006-06-01 | D19: 05-06 | E19: 8.92 | F19: 136 | H19: 42.42 | I19: 27 | K19: 163 | L19: Губанова В.В.
A20: 5 | B20: Фролова Виктория | D20: 05-06 | E20: 9.41 | F20: 49 | H20: 39.35 | I20: 67 | K20: 116 | L20: Мигунова Н.В.
A21: 6 | B21: Статьёва Татьяна | C21: 2005-01-17 | D21: 05-06 | E21: 9.37 | F21: 53 | H21: 41.4 | I21: 38 | K21: 91 | L21: Сафиуллина Г.Г.
A22: 7 | B22: Ермилова Елизавета | D22: 05-06 | E22: 9.78 | F22: 12 | H22: 42.45 | I22: 27 | K22: 39 | L22: Мигунова Н.В.
B23: Девушки 2007-2008
A24: М | B24: Фамилия Имя | C24: Дата рожд | E24: 50м | F24: очки | G24: разряд | H24: 200м | I24: очки | J24: разряд | K24: сумма | L24: тренер
A25: 1 | B25: Амитова Алия | D25: 07-08 | E25: 7.71 | F25: 444 | H25: 32.66 | I25: 230 | K25: =F25+I25 -> 674 | L25: Мигунова Н.В.
A26: 2 | B26: Хайрутдинова Аделина | C26: 2007-07-18 | D26: 07-08 | E26: 8.06 | F26: 343 | H26: 33.47 | I26: 202 | K26: 545 | L26: Рынина Е.И.
A27: 3 | B27: Сухотько София | C27: 2007-08-27 | D27: 07-08 | E27: 8.47 | F27: 232 | H27: 35.24 | I27: 152 | K27: 384 | L27: Губанова В.В.
A28: 4 | B28: Хайруллина Азалия | C28: 15.11.2007 | D28: 07-08 | E28: 8.67 | F28: 186 | H28: 36.92 | I28: 111 | K28: 297 | L28: Сафиуллина Г.Г.
A29: 5 | B29: Галиуллина Виктория | D29: 07-08 | E29: 8.61 | F29: 200 | H29: 38.48 | I29: 80 | K29: 280 | L29: Мигунова Н.В.
A30: 6 | B30: Степанова Лия | C30: 2009-05-08 | D30: 07-08 | E30: 8.79 | F30: 162 | H30: 38.42 | I30: 82 | K30: 244 | L30: Губанова В.В.
A31: 7 | B31: Хадиева Диана | C31: 2009-01-21 | D31: 07-08 | E31: 8.62 | F31: 197 | H31: 41.27 | I31: 39 | K31: 236 | L31: Губанова В.В.
A32: 8 | B32: Салина Милана | C32: 2008-03-19 | D32: 07-08 | E32: 8.96 | F32: 128 | H32: 37.95 | I32: 89 | K32: 217 | L32: Рынина Е.И.
A33: 9 | B33: Грачева Софья | D33: 07-08 | E33: 9.19 | F33: 82 | H33: 39.81 | I33: 58 | K33: 140 | L33: Мигунова Н.В.
A34: 10 | B34: Назмутдинова Самина | C34: 2009-01-13 | D34: 07-08 | E34: 9.09 | F34: 102 | H34: 42.04 | I34: 31 | K34: 133 | L34: Губанова В.В.
A35: 11 | B35: Фархутдинова Алиса | C35: 2007-07-23 | D35: 07-08 | E35: 9.54 | F35: 29 | H35: 38.41 | I35: 101 | K35: 130 | L35: Губанова В.В.
A36: 12 | B36: Хасанова Залифа | C36: 10.09.2007 | D36: 07-08 | E36: 9.39 | F36: 51 | H36: 39.51 | I36: 64 | K36: 115 | L36: Сафиуллина Г.Г.
A37: 13 | B37: Жолобовская Арина | C37: 2009-12-20 | D37: 07-08 | E37: 9.37 | F37: 53 | H37: 40.22 | I37: 54 | K37: 107 | L37: Губанова В.В.
A38: 14 | B38: Валеева Альбина | C38: 2007-09-14 | D38: 07-08 | E38: 9.49 | F38: 35 | H38: 41.18 | I38: 40 | K38: 75 | L38: Губанова В.В.
A39: 15 | B39: Семенова Аэлита | C39: 2009-05-25 | D39: 07-08 | E39: 9.37 | F39: 53 | H39: 43.59 | I39: 15 | K39: 68 | L39: Губанова В.В.
A40: 16 | B40: Михайлова Елизавета | C40: 2008-03-04 | D40: 07-08 | E40: 10.11 | F40: 9 | H40: 43.98 | I40: 12 | K40: 21 | L40: Губанова В.В.
A41: 17 | B41: Ахметзянова Ангелина | C41: 2008-11-18 | D41: 07-08 | E41: 10.34 | F41: 7 | H41: 45.72 | I41: 1 | K41: 8 | L41: Губанова В.В.
A42: 18 | B42: Лукоянова Арина | C42: 2009-06-10 | D42: 07-08 | E42: 10.39 | F42: 6 | H42: 51.27 | I42: 1 | K42: 7 | L42: Губанова В.В.
A43: 19 | B43: Аскарова Камилла | C43: 2009-10-01 | D43: 07-08 | E43: 10.45 | F43: 5 | H43: 47.34 | I43: 1 | K43: 6 | L43: Сафиуллина Г.Г.
B45: Юноши 2003-2004
A46: М | B46: Фамилия Имя | C46: Дата рожд | E46: 50м | F46: очки | G46: разряд | H46: 200м | I46: очки | J46: разряд | K46: сумма | L46: тренер
A47: 1 | B47: Капитонов Даниил | C47: 2004-10-22 | D47: 03-04 | E47: 7.63 | F47: 491 | H47: 31.31 | I47: 286 | K47: =F47+I47 -> 777 | L47: Сафиуллина Г.Г.
A48: 2 | B48: Филипов Ярослав | C48: 2004-12-05 | D48: 03-04 | E48: 7.82 | F48: 412 | H48: 32.02 | I48: 257 | K48: =F48+I48 -> 669 | L48: Сафиуллина Г.Г.
A49: 3 | B49: Якупов Артур | C49: 2004-01-04 | D49: 03-04 | E49: 7.87 | F49: 398 | H49: 33.09 | I49: 219 | K49: =F49+I49 -> 617 | L49: Файсханов Р.Р.
B50: Юноши 2005-2006
A51: М | B51: Фамилия Имя | C51: Дата рожд | E51: 50м | F51: очки | G51: разряд | H51: 200м | I51: очки | J51: разряд | K51: сумма | L51: тренер
A52: 1 | B52: Биктагиров Ринат | C52: 2005-06-04 | D52: 05-06 | E52: 7.52 | F52: 494 | H52: 30.93 | I52: 305 | K52: =F52+I52 -> 799 | L52: Сафиуллина Г.Г.
A53: 2 | B53: Довгополый Дамир | C53: 2005-01-12 | D53: 05-06 | E53: 7.56 | F53: 484 | H53: 30.93 | I53: 305 | K53: =F53+I53 -> 789 | L53: Файсханов Р.Р.
A54: 3 | B54: Маслов Данил | C54: 2006-11-09 | D54: 05-06 | E54: 7.73 | F54: 438 | H54: 31.2 | I54: 291 | K54: =F54+I54 -> 729 | L54: Рынина Е.И.
A55: 4 | B55: Варламов Вячеслав | D55: 05-06 | E55: 8.02 | F55: 354 | H55: 35.28 | I55: 152 | K55: =F55+I55 -> 506 | L55: Мигунова Н.В.
A56: 5 | B56: Шагбанов Дамир | D56: 05-06 | E56: 8.51 | F56: 222 | H56: 33.97 | I56: 190 | K56: =F56+I56 -> 412 | L56: Мигунова Н.В.
A57: 6 | B57: Фельк Андрей | C57: 2006-07-06 | D57: 05-06 | E57: 8.37 | F57: 258 | H57: 38.48 | I57: 82 | K57: =F57+I57 -> 340 | L57: Рынина Е.И.
A58: 7 | B58: Садыков Нурислам | C58: 2006-02-09 | D58: 05-06 | E58: 8.55 | F58: 214 | H58: 36.74 | I58: 116 | K58: =F58+I58 -> 330 | L58: Сафиуллина Г.Г.
A59: 8 | B59: Кадыров Руслан | C59: 1905-06-27 | D59: 05-06 | E59: 8.64 | F59: 192 | H59: 35.9 | I59: 134 | K59: =F59+I59 -> 326 | L59: Сафиуллина Г.Г.
A60: 9 | B60: Акберов Ильмар | D60: 05-06 | E60: 9.05 | F60: 110 | H60: 37.06 | I60: 109 | K60: =F60+I60 -> 219 | L60: Мигунова Н.В.
B61: Юноши 2007-2008
A62: М | B62: Фамилия Имя | C62: Дата рожд | E62: 50м | F62: очки | G62: разряд | H62: 200м | I62: очки | J62: разряд | K62: сумма | L62: тренер
A63: 1 | B63: Шихаб Зеяд | E63: 7.78 | F63: 424 | H63: 35.08 | I63: 155 | K63: =F63+I63 -> 579 | L63: Мигунова Н.В.
A64: 2 | B64: Зырянов Максим | E64: 8.12 | F64: 326 | H64: 34.63 | I64: 169 | K64: 495 | L64: Мигунова Н.В.
A65: 3 | B65: Магдеев Ильфар | C65: 2007-07-13 | E65: 8.2 | F65: 304 | H65: 36.03 | I65: 132 | K65: 436 | L65: Губанова В.В.
A66: 4 | B66: Шерминский Ян | C66: 2008-03-13 | E66: 8.28 | F66: 283 | H66: 37.41 | I66: 99 | K66: 382 | L66: Губанова В.В.
A67: 5 | B67: Поляков Иван | C67: 2008-03-18 | E67: 8.39 | F67: 253 | H67: 36.39 | I67: 122 | K67: 375 | L67: Губанова В.В.
A68: 6 | B68: Камалов Имиль | C68: 2007-08-10 | E68: 8.5 | F68: 225 | H68: 36.16 | I68: 127 | K68: 352 | L68: Губанова В.В.
A69: 7 | B69: Алмаев Иван | C69: 2009-12-24 | E69: 8.49 | F69: 227 | H69: 36.38 | I69: 122 | K69: 349 | L69: Губанова В.В.
A70: 8 | B70: Губанов Данил | C70: 2007-12-06 | E70: 8.55 | F70: 214 | H70: 36.98 | I70: 111 | K70: 325 | L70: Сафиуллина Г.Г.
A71: 9 | B71: Аникин Никита | C71: 2008-01-07 | E71: 8.52 | F71: 220 | H71: 37.7 | I71: 95 | K71: 315 | L71: Сафиуллина Г.Г.
A72: 10 | B72: Боталов Егор | C72: 2009-09-10 | E72: 8.46 | F72: 235 | H72: 38.64 | I72: 79 | K72: 314 | L72: Губанова В.В.
A73: 11 | B73: Щепанцов Артем | E73: 8.51 | F73: 222 | H73: 38.14 | I73: 88 | K73: 310 | L73: Мигунова Н.В.
A74: 12 | B74: Сабиров Джаудат | C74: 2008-08-20 | E74: 8.53 | F74: 218 | H74: 39.05 | I74: 72 | K74: 290 | L74: Губанова В.В.
A75: 13 | B75: Камалов Фаниль | C75: 2007-08-10 | E75: 8.67 | F75: 186 | H75: 38.56 | I75: 80 | K75: 266 | L75: Губанова В.В.
A76: 14 | B76: Кутдусов Инсаф | C76: 2007-06-07 | E76: 8.7 | F76: 180 | H76: 43.29 | I76: 19 | K76: 199 | L76: Губанова В.В.
A77: 15 | B77: Ермилов Кирилл | E77: 8.99 | F77: 122 | H77: 41.31 | I77: 38 | K77: 160 | L77: Мигунова Н.В.
A78: 16 | B78: Мухамадиев Ринат | C78: 2009-06-10 | E78: 9.21 | F78: 78 | H78: 42.19 | I78: 30 | K78: 108 | L78: Губанова В.В.
A79: 17 | B79: Кадыров Даниэль | C79: 2007-07-30 | E79: 9.19 | F79: 82 | H79: 43.38 | I79: 17 | K79: 99 | L79: Губанова В.В.
B90: Многоборье №3 | D90: Бег 50м + толкание ядра
B91: Девушки 2003-2004
A92: М | B92: Фамилия Имя | C92: Дата рожд | E92: 50м | F92: очки | G92: разряд | H92: ядро | I92: очки | J92: разряд | K92: сумма | L92: тренер
A93: 1 | B93: Низамиева Камилла | C93: 2004-12-05 | E93: 8.98 | F93: 124 | H93: 5.34 | I93: 223 | K93: =F93+I93 -> 347 | L93: Сафиуллина Г.Г.
A94: 2 | B94: Бахитова Эмилия | C94: 2003-10-20 | E94: 9.27 | F94: 66 | H94: 5.52 | I94: 240 | K94: =F94+I94 -> 306 | L94: Файсханов Р.Р.
B96: Девушки 2005-2006
A97: М | B97: Фамилия Имя | C97: Дата рожд | E97: 50м | F97: очки | G97: разряд | H97: ядро | I97: очки | J97: разряд | K97: сумма | L97: тренер
A98: 1 | B98: Пытина Евгения | C98: 2006-07-19 | E98: 8.46 | F98: 235 | H98: 5.06 | I98: 197 | K98: =F98+I98 -> 432 | L98: Сафиуллина Г.Г.
A99: 2 | B99: Статьёва Татьяна | C99: 2005-01-17 | E99: 9.37 | F99: 53 | H99: 4.67 | I99: 159 | K99: =F99+I99 -> 212 | L99: Сафиуллина Г.Г.
B101: Девушки 2007-2008
A102: М | B102: Фамилия Имя | C102: Дата рожд | E102: 50м | F102: очки | G102: разряд | H102: ядро | I102: очки | J102: разряд | K102: сумма | L102: тренер
A103: 1 | B103: Аскарова Камилла | C103: 2009-10-01 | E103: 10.45 | F103: 5 | H103: 4.12 | I103: 102 | K103: =F103+I103 -> 107 | L103: Сафиуллина Г.Г.
B106: Юноши 2003-2004
A107: М | B107: Фамилия Имя | C107: Дата рожд | E107: 50м | F107: очки | G107: разряд | H107: ядро | I107: очки | J107: разряд | K107: сумма | L107: тренер
A108: 1 | B108: Багаманов Ильдар | C108: 2004-11-17 | E108: 9.16 | F108: 88 | H108: 5.55 | I108: 243 | K108: =F108+I108 -> 331 | L108: Сафиуллина Г.Г.
B110: Юноши 2005-2006
A111: М | B111: Фамилия Имя | C111: Дата рожд | E111: 50м | F111: очки | G111: разряд | H111: ядро | I111: очки | J111: разряд | K111: сумма | L111: тренер
A112: 1 | B112: Петров Адель | C112: 2005-06-09 | E112: 8.42 | F112: 245 | H112: 5.41 | I112: 230 | K112: =F112+I112 -> 475 | L112: Сафиуллина Г.Г.
A113: 2 | B113: Фаррахов Амир | C113: 2005-09-17 | E113: 8.41 | F113: 247 | H113: 5.15 | I113: 205 | K113: =F113+I113 -> 452 | L113: Сафиуллина Г.Г.
A114: 3 | B114: Пырочкин Богдан | C114: 2006-10-11 | E114: 10.15 | F114: 8 | H114: 5.98 | I114: 281 | K114: =F114+I114 -> 289 | L114: Файсханов Р.Р.
A115: 4 | B115: Давлятов Артур | C115: 2005-04-21 | E115: 9.32 | F115: 58 | H115: 5.4 | I115: 229 | K115: =F115+I115 -> 287 | L115: Сафиуллина Г.Г.
A116: 5 | B116: Ахтямов Нияз | C116: 2005-06-08 | E116: 9.43 | F116: 46 | H116: 5.38 | I116: 227 | K116: =F116+I116 -> 273 | L116: Сафиуллина Г.Г.
B119: Многоборье №5 | D119: Бег 50м + прыжок в высоту
B121: Юноши 2003-2004
A122: М | B122: Фамилия Имя | C122: Дата рожд | E122: 50м | F122: очки | G122: разряд | H122: высота | I122: очки | J122: разряд | K122: сумма | L122: тренер
A123: 1 | B123: Симушкин Булат | C123: 2004-12-19 | E123: 7.62 | F123: 468 | H123: 100 | I123: 37 | K123: =F123+I123 -> 505 | L123: Сафиуллина Г.Г.
B125: Юноши 2005-2006
A126: М | B126: Фамилия Имя | C126: Дата рожд | E126: 50м | F126: очки | G126: разряд | H126: высота | I126: очки | J126: разряд | K126: сумма | L126: тренер
A127: 1 | B127: Хайруллов Айдар | C127: 2005-11-06 | E127: 7.61 | F127: 471 | H127: 125 | I127: 422 | K127: =F127+I127 -> 893 | L127: Файсханов Р.Р.
A128: 2 | B128: Егоренков Дмитрий | C128: 2005-01-24 | E128: 7.54 | F128: 489 | H128: 120 | I128: 353 | K128: 842 | L128: Сафиуллина Г.Г.
A129: 3 | B129: Темиргалиев Саид | C129: 2005-11-11 | E129: 8.1 | F129: 332 | H129: 115 | I129: 279 | K129: 611 | L129: Сафиуллина Г.Г.
A130: 4 | B130: Петров Адель | C130: 2005-06-09 | E130: 8.42 | F130: 245 | H130: 120 | I130: 353 | K130: 598 | L130: Сафиуллина Г.Г.
A131: 5 | B131: Фаррахов Амир | C131: 2005-09-17 | E131: 8.41 | F131: 247 | H131: 110 | I131: 201 | K131: 448 | L131: Сафиуллина Г.Г.
A132: 6 | B132: Садыков Нурислам | C132: 2006-02-09 | E132: 8.55 | F132: 214 | H132: 110 | I132: 201 | K132: 415 | L132: Сафиуллина Г.Г.
B134: Юноши 2007-2008
A135: М | B135: Фамилия Имя | C135: Дата рожд | E135: 50м | F135: очки | G135: разряд | H135: высота | I135: очки | J135: разряд | K135: сумма | L135: тренер
A136: 1 | B136: Зудин Данил | C136: 2007-07-19 | E136: 8.29 | F136: 279 | H136: 110 | I136: 201 | K136: =F136+I136 -> 480 | L136: Сафиуллина Г.Г.
A137: 2 | B137: Галиев Султан | C137: 2007-05-29 | E137: 8.24 | F137: 293 | H137: 105 | I137: 117 | K137: =F137+I137 -> 410 | L137: Сафиуллина Г.Г.
A138: 3 | B138: Панфутов Кирилл | C138: 2007-10-11 | E138: 9.09 | F138: 102 | H138: 110 | I138: 201 | K138: =F138+I138 -> 303 | L138: Сафиуллина Г.Г.
B148: Многоборье №5 | D148: Бег 50м + прыжок в высоту
B149: Девушки 2003-2004
A150: М | B150: Фамилия Имя | C150: Дата рожд | E150: 50м | F150: очки | G150: разряд | H150: высота | I150: очки | J150: разряд | K150: сумма | L150: тренер
A151: 1 | B151: Чувашаева Малика | C151: 2004-12-09 | E151: 7.78 | F151: 424 | H151: 120 | I151: 353 | J151: 2 юн | K151: =F151+I151 -> 777 | L151: Файсханов Р.Р.
A152: 2 | B152: Хасанова Камиля | C152: 2004-12-07 | E152: 8.1 | F152: 332 | H152: 115 | I152: 279 | J152: 3 юн | K152: =F152+I152 -> 611 | L152: Сафиуллина Г.Г.
B154: Девушки 2005-2006
A155: М | B155: Фамилия Имя | C155: Дата рожд | E155: 50м | F155: очки | G155: разряд | H155: высота | I155: очки | J155: разряд | K155: сумма | L155: тренер
A156: 1 | B156: Нежинская Алина | C156: 2005-02-27 | E156: 7.93 | F156: 380 | H156: 125 | I156: 422 | J156: 2 юн | K156: =F156+I156 -> 802 | L156: Рынина Е.И.
A157: 2 | B157: Пытина Евгения | C157: 2006-07-19 | E157: 8.46 | F157: 235 | H157: 115 | I157: 279 | J157: 3 юн | K157: =F157+I157 -> 514 | L157: Сафиуллина Г.Г.
A158: 3 | B158: Ибрагимова Ильвина | C158: 2005-11-06 | E158: 8.52 | F158: 220 | H158: 115 | I158: 279 | J158: 3 юн | K158: =F158+I158 -> 499 | L158: Сафиуллина Г.Г.
A159: 4 | B159: Шафигуллина Зульфия | C159: 2005-07-05 | E159: 8.81 | F159: 158 | H159: 105 | I159: 117 | K159: =F159+I159 -> 275 | L159: Сафиуллина Г.Г.
A160: 5 | B160: Гимадиева Алсу | C160: 2005-07-19 | E160: 9.32 | F160: 58 | H160: 95 | I160: 12 | K160: =F160+I160 -> 70 | L160: Сафиуллина Г.Г.
B162: Девушки 2007-2008
A163: М | B163: Фамилия Имя | C163: Дата рожд | E163: 50м | F163: очки | G163: разряд | H163: высота | I163: очки | J163: разряд | K163: сумма | L163: тренер
A164: 1 | B164: Дрягина София | C164: 2008-02-21 | E164: 8.38 | F164: 255 | H164: 120 | I164: 353 | J164: 2 юн | K164: =F164+I164 -> 608 | L164: Файсханов Р.Р.
A165: 2 | B165: Хайруллина Азалия | C165: 15.11.2007 | E165: 8.67 | F165: 186 | H165: 115 | I165: 279 | J165: 3 юн | K165: =F165+I165 -> 465 | L165: Сафиуллина Г.Г.
A166: 3 | B166: Хасанова Залифа | C166: 10.09.2007 | E166: 9.39 | F166: 253 | H166: 100 | I166: 37 | K166: =F166+I166 -> 290 | L166: Сафиуллина Г.Г.
B169: Многоборье №5 | D169: Бег 50м + прыжок в длину
B170: Девушки 2003-2004
A171: М | B171: Фамилия Имя | C171: Дата рожд | E171: 50м | F171: очки | G171: разряд | H171: длина | I171: очки | J171: разряд | K171: сумма | L171: тренер
A172: 1 | B172: Галимова Сабина | C172: 2004-12-03 | E172: 8.47 | F172: 232 | H172: 327 | I172: 217 | K172: =F172+I172 -> 449 | L172: Сафиуллина Г.Г.
A173: 2 | B173: Ягудина Раилина | C173: 2004-12-01 | E173: 8.2 | F173: 304 | H173: 286 | I173: 91 | K173: 395 | L173: Сафиуллина Г.Г.
B175: Многоборье №5 | D175: Бег 50м + прыжок в длину
B176: Девушки 2005-2006
A177: М | B177: Фамилия Имя | C177: Дата рожд | E177: 50м | F177: очки | G177: разряд | H177: длина | I177: очки | J177: разряд | K177: сумма | L177: тренер
A178: 1 | B178: Гадельшина Алсу | C178: 2005-03-28 | E178: 7.37 | F178: 541 | H178: 455 | I178: 566 | K178: =F178+I178 -> 1107 | L178: Рынина Е.И.
A179: 2 | B179: Нежинская Алина | C179: 2005-02-27 | E179: 7.93 | F179: 380 | H179: 378 | I179: 363 | K179: 743 | L179: Рынина Е.И.
A180: 3 | B180: Насырова Диана | C180: 2005-10-05 | E180: 8.45 | F180: 237 | H180: 375 | I180: 355 | K180: 592 | L180: Сафиуллина Г.Г.
A181: 4 | B181: Охотникова София | C181: 2005-01-01 | E181: 8.34 | F181: 266 | H181: 311 | I181: 169 | K181: 435 | L181: Сафиуллина Г.Г.
A182: 5 | B182: Ибрагимова Ильвина | C182: 2005-11-06 | E182: 8.52 | F182: 220 | H182: 319 | I182: 193 | K182: 413 | L182: Сафиуллина Г.Г.
A183: 6 | B183: Квасова София | C183: 2006-08-01 | E183: 8.28 | F183: 283 | H183: 287 | I183: 94 | K183: 377 | L183: Сафиуллина Г.Г.
A184: 7 | B184: Ахмадеева Зарина | C184: 2005-03-31 | E184: 8.32 | F184: 272 | H184: х | I184: 0 | K184: =F184+I184 -> 272 | L184: Сафиуллина Г.Г.
A185: 8 | B185: Щеглова Анастасия | C185: 2006-06-01 | E185: 8.92 | F185: 136 | H185: х | I185: 0 | K185: =F185+I185 -> 136 | L185: Губанова В.В.
A186: 9 | B186: Яббарова Зульфия | C186: 2005-03-23 | E186: 9.07 | F186: 106 | H186: 260 | I186: 6 | K186: =F186+I186 -> 112 | L186: Сафиуллина Г.Г.
B188: Девушки 2007-2008
A189: М | B189: Фамилия Имя | C189: Дата рожд | E189: 50м | F189: очки | G189: разряд | H189: длина | I189: очки | J189: разряд | K189: сумма | L189: тренер
A190: 1 | B190: Хайрутдинова Аделина | C190: 2007-07-18 | E190: 8.06 | F190: 343 | H190: 360 | I190: 312 | K190: =F190+I190 -> 655 | L190: Рынина Е.И.
A191: 2 | B191: Бадякина Дарья | C191: 2007-03-20 | E191: 7.8 | F191: 418 | H191: 300 | I191: 135 | K191: 553 | L191: Сафиуллина Г.Г.
A192: 3 | B192: Зиятдинова Аделя | C192: 2008-08-20 | E192: 8.21 | F192: 301 | H192: 297 | I192: 125 | K192: 426 | L192: Сафиуллина Г.Г.
A193: 4 | B193: Сухотько София | C193: 2007-08-27 | E193: 8.47 | F193: 232 | H193: 304 | I193: 147 | K193: 379 | L193: Губанова В.В.
A194: 5 | B194: Салина Милана | C194: 2008-03-19 | E194: 8.96 | F194: 128 | H194: 335 | I194: 240 | K194: 368 | L194: Рынина Е.И.
A195: 6 | B195: Хадиева Диана | C195: 2009-01-21 | E195: 8.62 | F195: 197 | H195: 280 | I195: 72 | K195: 269 | L195: Губанова В.В.
A196: 7 | B196: Степанова Лия | C196: 2009-05-08 | E196: 8.79 | F196: 162 | H196: 268 | I196: 33 | K196: 195 | L196: Губанова В.В.
A197: 8 | B197: Назмутдинова Самина | C197: 2009-01-13 | E197: 9.09 | F197: 102 | H197: 266 | I197: 26 | K197: 128 | L197: Губанова В.В.
A198: 9 | B198: Жолобовская Арина | C198: 2009-12-20 | E198: 9.37 | F198: 53 | H198: 280 | I198: 72 | K198: 125 | L198: Губанова В.В.
A199: 10 | B199: Валеева Альбина | C199: 2007-09-14 | E199: 9.49 | F199: 35 | H199: 284 | I199: 84 | K199: 119 | L199: Губанова В.В.
A200: 11 | B200: Семенова Аэлита | C200: 2009-05-25 | E200: 9.37 | F200: 53 | H200: 278 | I200: 65 | K200: 118 | L200: Губанова В.В.
A201: 12 | B201: Фархутдинова Алиса | C201: 2007-07-23 | E201: 9.54 | F201: 29 | H201: 0 | K201: 29 | L201: Губанова В.В.
A202: 13 | B202: Михайлова Елизавета | C202: 2008-03-04 | E202: 10.11 | F202: 9 | H202: 233 | I202: 1 | K202: 10 | L202: Губанова В.В.
A203: 14 | B203: Ахметзянова Ангелина | C203: 2008-11-18 | E203: 10.34 | F203: 7 | H203: 0 | K203: 7 | L203: Губанова В.В.
B205: Многоборье №5 | D205: Бег 50м + прыжок в длину
B206: Юноши 2003-2004
A207: М | B207: Фамилия Имя | C207: Дата рожд | E207: 50м | F207: очки | G207: разряд | H207: длина | I207: очки | J207: разряд | K207: сумма | L207: тренер
A208: 1 | B208: Филипов Ярослав | C208: 2004-12-05 | E208: 7.82 | F208: 412 | H208: 372 | I208: 346 | K208: =F208+I208 -> 758 | L208: Сафиуллина Г.Г.
A209: 2 | B209: Багаманов Ильдар | C209: 2004-11-17 | E209: 9.16 | F209: 88 | H209: 288 | I209: 97 | K209: =F209+I209 -> 185 | L209: Сафиуллина Г.Г.
B211: Юноши 2005-2006
A212: М | B212: Фамилия Имя | C212: Дата рожд | E212: 50м | F212: очки | G212: разряд | H212: длина | I212: очки | J212: разряд | K212: сумма | L212: тренер
A213: 1 | B213: Садыков Нурислам | C213: 2006-02-09 | E213: 8.55 | F213: 214 | H213: 355 | I213: 298 | K213: =F213+I213 -> 512 | L213: Сафиуллина Г.Г.
A214: 2 | B214: Фельк Андрей | C214: 2006-07-06 | E214: 8.37 | F214: 258 | H214: 316 | I214: 184 | K214: =F214+I214 -> 442 | L214: Рынина Е.И.
A215: 3 | B215: Маслов Данил | C215: 2006-11-09 | E215: 7.73 | F215: 438 | H215: 0 | I215: 0 | K215: =F215+I215 -> 438 | L215: Рынина Е.И.
A216: 4 | B216: Кадыров Руслан | C216: 1905-06-27 | E216: 8.64 | F216: 192 | H216: 332 | I216: 232 | K216: =F216+I216 -> 424 | L216: Сафиуллина Г.Г.
A217: 5 | B217: Ахтямов Нияз | C217: 2005-06-08 | E217: 9.43 | F217: 46 | H217: 285 | I217: 88 | K217: =F217+I217 -> 134 | L217: Сафиуллина Г.Г.
A218: 6 | B218: Давлятов Артур | C218: 2005-04-21 | E218: 9.32 | F218: 58 | H218: 268 | I218: 33 | K218: =F218+I218 -> 91 | L218: Сафиуллина Г.Г.
B220: Юноши 2007-2008
A221: М | B221: Фамилия Имя | C221: Дата рожд | E221: 50м | F221: очки | G221: разряд | H221: длина | I221: очки | J221: разряд | K221: сумма | L221: тренер
A222: 1 | B222: Магдеев Ильфар | C222: 2007-07-13 | E222: 8.2 | F222: 304 | H222: 343 | I222: 264 | K222: =F222+I222 -> 568 | L222: Губанова В.В.
A223: 2 | B223: Поляков Иван | C223: 2008-03-18 | E223: 8.39 | F223: 253 | H223: 320 | I223: 196 | K223: =F223+I223 -> 449 | L223: Губанова В.В.
A224: 3 | B224: Алмаев Иван | C224: 2009-12-24 | E224: 8.49 | F224: 227 | H224: 318 | I224: 190 | K224: =F224+I224 -> 417 | L224: Губанова В.В.
A225: 4 | B225: Боталов Егор | C225: 2009-09-10 | E225: 8.46 | F225: 235 | H225: 315 | I225: 181 | K225: =F225+I225 -> 416 | L225: Губанова В.В.
A226: 5 | B226: Шерминский Ян | C226: 2008-03-13 | E226: 8.28 | F226: 283 | H226: 297 | I226: 125 | K226: =F226+I226 -> 408 | L226: Губанова В.В.
A227: 6 | B227: Сабиров Джаудат | C227: 2008-08-20 | E227: 8.53 | F227: 218 | H227: 295 | I227: 119 | K227: =F227+I227 -> 337 | L227: Губанова В.В.
A228: 7 | B228: Губанов Данил | C228: 2007-12-06 | E228: 8.55 | F228: 214 | H228: 282 | I228: 78 | K228: =F228+I228 -> 292 | L228: Сафиуллина Г.Г.
A229: 8 | B229: Кадыров Даниэль | C229: 2007-07-30 | E229: 9.19 | F229: 82 | H229: 305 | I229: 150 | K229: =F229+I229 -> 232 | L229: Губанова В.В.
A230: 9 | B230: Мухамадиев Ринат | C230: 2009-06-10 | E230: 9.21 | F230: 78 | H230: 270 | I230: 39 | K230: =F230+I230 -> 117 | L230: Губанова В.В.
C232: Многоборье №2 Бег 50м +бег 300м
B233: Девушки 2003-2004
A234: М | B234: Фамилия Имя | C234: Дата рожд | E234: 50м | F234: очки | G234: разряд | H234: 300 | I234: очки | J234: разряд | K234: сумма | L234: тренер
A235: 1 | B235: Чувашаева Малика | C235: 2004-12-09 | E235: 7.78 | F235: 424 | H235: 51.1 | I235: 237 | K235: =F235+I235 -> 661 | L235: Файсханов Р.Р.
B237: Девушки 2005-2006
A238: М | B238: Фамилия Имя | C238: Дата рожд | E238: 50м | F238: очки | G238: разряд | H238: 300 | I238: очки | J238: разряд | K238: сумма | L238: тренер
A239: 1 | B239: Миронова Елизавета | C239: 10.07.2006 | E239: 8.81 | F239: 158 | H239: 59.9 | I239: 111 | K239: =F239+I239 -> 269 | L239: Сафиуллина Г.Г.
A240: 2 | B240: Щеглова Анастасия | C240: 2006-06-01 | E240: 8.92 | F240: 136 | H240: 1.04,0 | I240: 70 | K240: =F240+I240 -> 206 | L240: Губанова В.В.
B242: Девушки 2007-2008
A243: М | B243: Фамилия Имя | C243: Дата рожд | E243: 50м | F243: очки | G243: разряд | H243: 300 | I243: очки | J243: разряд | K243: сумма | L243: тренер
A244: 1 | B244: Амитова Алия | E244: 7.71 | F244: 444 | H244: 51.7 | I244: 219 | K244: =F244+I244 -> 663 | L244: Мигунова Н.В.
... 34 more rows

Sheet 50
C1: Бег 50 м
B2: Девушки 2003-2004
A3: Р | B3: Фамилия Имя | C3: Дата рождения | D3: Организация | E3: 50 м | G3: Разряд | H3: Тренер
A4: 1 | B4: Хабибуллина Венера | C4: 2004-09-10 | D4: КДЮСШ Авиатор | E4: 7.68 | F4: 7.7 | G4: 3 | H4: Сафиуллина Г.Г.
A5: 2 | B5: Хакимуллина Диана | C5: 2004-10-15 | D5: КДЮСШ Авиатор | E5: 7.69 | F5: 7.7 | G5: 3 | H5: Файсханов Р.Р.
A6: 3 | B6: Зарипова Регина | C6: 2004-12-12 | D6: КДЮСШ Авиатор | E6: 7.76 | F6: 7.8 | G6: 1 юн | H6: Файсханов Р.Р.
A7: 4 | B7: Чувашаева Малика | C7: 2004-12-09 | D7: КДЮСШ Авиатор | E7: 7.78 | F7: 7.8 | G7: 1 юн | H7: Файсханов Р.Р.
A8: 5 | B8: Хасанова Камиля | C8: 2004-12-07 | D8: КДЮСШ Авиатор | E8: 8.1 | F8: 8.1 | G8: 1 юн | H8: Сафиуллина Г.Г.
A9: 6 | B9: Ягудина Раилина | C9: 2004-12-01 | D9: КДЮСШ Авиатор | F9: 8.2 | G9: 1 юн | H9: Сафиуллина Г.Г.
A10: 7 | B10: Галимова Сабина | C10: 2004-12-03 | D10: КДЮСШ Авиатор | E10: 8.47 | F10: 8.5 | G10: 2 юн | H10: Сафиуллина Г.Г.
A11: 8 | B11: Низамиева Камилла | C11: 2004-12-05 | D11: КДЮСШ Авиатор | E11: 8.98 | F11: 9.0 | G11: 3 юн | H11: Сафиуллина Г.Г.
A12: 9 | B12: Садыкова Бибинур | C12: 2004-06-10 | D12: КДЮСШ Авиатор | E12: 9.06 | F12: 9.1 | G12: 3 юн | H12: Сафиуллина Г.Г.
A13: 10 | B13: Бахитова Эмилия | C13: 2003-10-20 | D13: КДЮСШ Авиатор | E13: 9.27 | F13: 9.3 | G13: 3 юн | H13: Файсханов Р.Р.
B15: Девушки 2005-2006
A16: Р | B16: Фамилия Имя | C16: Дата рождения | D16: Организация | E16: 50 м | F16: Рез-т | G16: Разряд | H16: Тренер
A17: 1 | B17: Гадельшина Алсу | C17: 2005-03-28 | D17: КДЮСШ Авиатор | E17: 7.37 | F17: 7.4 | G17: 2 | H17: Рынина Е.И.
A18: 2 | B18: Нежинская Алина | C18: 2005-02-27 | D18: КДЮСШ Авиатор | E18: 7.93 | F18: 8.0 | G18: 1 юн | H18: Рынина Е.И.
A19: 3 | B19: Квасова София | C19: 2006-08-01 | D19: КДЮСШ Авиатор | E19: 8.28 | F19: 8.3 | G19: 2 юн | H19: Сафиуллина Г.Г.
A20: 4 | B20: Ахмадеева Зарина | C20: 2005-03-31 | D20: КДЮСШ Авиатор | F20: 8.4 | G20: 2 юн | H20: Сафиуллина Г.Г.
A21: 5 | B21: Пытина Евгения | C21: 2006-07-19 | D21: КДЮСШ Авиатор | E21: 8.46 | F21: 8.5 | G21: 2 юн | H21: Сафиуллина Г.Г.
A22: 6 | B22: Насырова Диана | C22: 2005-10-05 | D22: КДЮСШ Авиатор | E22: 8.45 | F22: 8.5 | G22: 2 юн | H22: Сафиуллина Г.Г. | K22: =F22+I22 -> 8.5 | L22: Сафиуллина Г.Г.
A23: 7 | B23: Ибрагимова Ильвина | C23: 2005-11-06 | D23: КДЮСШ Авиатор | E23: 8.52 | F23: 8.6 | G23: 2 юн | H23: Сафиуллина Г.Г.
A24: 8 | B24: Миронова Елизавета | C24: 10.07.2006 | D24: КДЮСШ Авиатор | E24: 8.81 | F24: 8.9 | G24: 3 юн | H24: Сафиуллина Г.Г.
A25: 9 | B25: Шафигуллина Зульфия | C25: 2005-07-05 | D25: КДЮСШ Авиатор | E25: 8.81 | F25: 8.9 | G25: 3юн | H25: Сафиуллина Г.Г.
A26: 10 | B26: Щеглова Анастасия | C26: 2006-06-01 | D26: КДЮСШ Авиатор | E26: 8.92 | F26: 9.0 | G26: 3 юн | H26: Губанова В.В.
A27: 11 | B27: Гимадиева Алсу | C27: 2005-07-19 | D27: КДЮСШ Авиатор | E27: 9.32 | F27: 9.4 | H27: Сафиуллина Г.Г.
A28: 12 | B28: Статьёва Татьяна | C28: 2005-01-17 | D28: КДЮСШ Авиатор | E28: 9.37 | F28: 9.4 | H28: Сафиуллина Г.Г.
A29: 13 | B29: Фролова Виктория | D29: Приволжанин | E29: 9.41 | F29: 9.5 | H29: Мигунова Н.В.
A30: 14 | B30: Ермилова Елизавета | D30: Приволжанин | E30: 9.78 | F30: 9.8 | H30: Мигунова Н.В.
B32: Девушки 2007-2008
A33: Р | B33: Фамилия Имя | C33: Дата рождения | D33: Организация | E33: 50 м | G33: Разряд | H33: Тренер
A34: 1 | B34: Амитова Алия | D34: Приволжанин | E34: 7.71 | F34: 7.8 | G34: 1 юн | H34: Мигунова Н.В.
A35: 2 | B35: Хайрутдинова Аделина | C35: 2007-07-18 | D35: КДЮСШ Авиатор | E35: 8.06 | F35: 8.1 | G35: 1 юн | H35: Рынина Е.И.
A36: 3 | B36: Дрягина София | C36: 2008-02-21 | D36: КДЮСШ Авиатор | E36: 8.38 | F36: 8.4 | G36: 2 юн | H36: Файсханов Р.Р.
A37: 4 | B37: Сухотько София | C37: 2007-08-27 | D37: КДЮСШ Авиатор | E37: 8.47 | F37: 8.5 | G37: 2 юн | H37: Губанова В.В.
A38: 5 | B38: Попова Диана | D38: КДЮСШ Авиатор | F38: 8.6 | G38: 2 юн | H38: Губанова В.В.
A39: 6 | B39: Галиуллина Виктория | D39: Приволжанин | E39: 8.61 | F39: 8.7 | G39: 3 юн | H39: Мигунова Н.В.
A40: 7 | B40: Хадиева Диана | C40: 2009-01-21 | D40: КДЮСШ Авиатор | E40: 8.62 | F40: 8.7 | G40: 3 юн | H40: Губанова В.В.
A41: 8 | B41: Хайруллина Азалия | C41: 15.11.2007 | D41: КДЮСШ Авиатор | E41: 8.67 | F41: 8.7 | G41: 3 юн | H41: Сафиуллина Г.Г.
A42: 9 | B42: Степанова Лия | C42: 2009-05-08 | D42: КДЮСШ Авиатор | E42: 8.79 | F42: 8.8 | G42: 3юн | H42: Губанова В.В.
A43: 10 | B43: Салина Милана | C43: 2008-03-19 | D43: КДЮСШ Авиатор | E43: 8.96 | F43: 9.0 | G43: 3 юн | H43: Рынина Е.И.
A44: 11 | B44: Назмутдинова Самина | C44: 2009-01-13 | D44: КДЮСШ Авиатор | E44: 9.09 | F44: 9.1 | G44: 3 юн | H44: Губанова В.В.
A45: 12 | B45: Грачева Софья | D45: Приволжанин | E45: 9.19 | F45: 9.2 | G45: 3 юн | H45: Мигунова Н.В.
A46: 13 | B46: Жолобовская Арина | C46: 2009-12-20 | D46: КДЮСШ Авиатор | E46: 9.37 | F46: 9.4 | H46: Губанова В.В.
A47: 14 | B47: Семенова Аэлита | C47: 2009-05-25 | D47: КДЮСШ Авиатор | E47: 9.37 | F47: 9.4 | H47: Губанова В.В.
A48: 15 | B48: Хасанова Залифа | C48: 10.09.2007 | D48: КДЮСШ Авиатор | E48: 9.39 | F48: 9.4 | H48: Сафиуллина Г.Г.
A49: 16 | B49: Валеева Альбина | C49: 2007-09-14 | D49: КДЮСШ Авиатор | E49: 9.49 | F49: 9.5 | H49: Губанова В.В.
A50: 17 | B50: Фархутдинова Алиса | C50: 2007-07-23 | D50: КДЮСШ Авиатор | E50: 9.54 | F50: 9.6 | H50: Губанова В.В.
A51: 18 | B51: Михайлова Елизавета | C51: 2008-03-04 | D51: КДЮСШ Авиатор | E51: 10.11 | F51: 10.2 | H51: Губанова В.В.
A52: 19 | B52: Ахметзянова Ангелина | C52: 2008-11-18 | D52: КДЮСШ Авиатор | E52: 10.34 | F52: 10.4 | H52: Губанова В.В.
A53: 20 | B53: Лукоянова Арина | C53: 2009-06-10 | D53: КДЮСШ Авиатор | E53: 10.39 | F53: 10.4 | H53: Губанова В.В.
A54: 21 | B54: Аскарова Камилла | C54: 2009-10-01 | D54: КДЮСШ Авиатор | E54: 10.45 | F54: 10.5 | H54: Сафиуллина Г.Г.
B60: Юноши 2003-2004
A61: Р | B61: Фамилия Имя | C61: Дата рождения | D61: Организация | E61: 50 м | G61: Разряд | H61: Тренер
A62: 1 | B62: Симушкин Булат | C62: 2004-12-19 | D62: КДЮСШ Авиатор | E62: 7.62 | F62: 7.7 | G62: 3 юн | H62: Сафиуллина Г.Г.
A63: 2 | B63: Капитонов Даниил | C63: 2004-10-22 | D63: КДЮСШ Авиатор | E63: 7.63 | F63: 7.7 | G63: 3 юн | H63: Сафиуллина Г.Г.
A64: 3 | B64: Якупов Артур | C64: 2004-01-04 | D64: КДЮСШ Авиатор | E64: 7.87 | F64: 7.9 | G64: 3 юн | H64: Файсханов Р.Р.
A65: 4 | B65: Багаманов Ильдар | C65: 2004-11-17 | D65: КДЮСШ Авиатор | E65: 9.16 | F65: 9.2 | H65: Сафиуллина Г.Г.
B67: Юноши 2005-2006
A68: Р | B68: Фамилия Имя | C68: Дата рождения | D68: Организация | E68: 50 м | G68: Разряд | H68: Тренер
A69: 1 | B69: Биктагиров Ринат | C69: 2005-06-04 | D69: КДЮСШ Авиатор | E69: 7.52 | F69: 7.6 | G69: 3 юн | H69: Сафиуллина Г.Г.
A70: 2 | B70: Егоренков Дмитрий | C70: 2005-01-24 | D70: КДЮСШ Авиатор | E70: 7.54 | F70: 7.6 | G70: 3 юн | H70: Сафиуллина Г.Г.
A71: 3 | B71: Довгополый Дамир | C71: 2005-01-12 | D71: КДЮСШ Авиатор | E71: 7.56 | F71: 7.6 | G71: 3 юн | H71: Файсханов Р.Р.
A72: 4 | B72: Хайруллов Айдар | C72: 2005-11-06 | D72: КДЮСШ Авиатор | E72: 7.61 | F72: 7.7 | G72: 3 юн | H72: Файсханов Р.Р. | J72: об
A73: 5 | B73: Маслов Данил | C73: 2006-11-09 | D73: КДЮСШ Авиатор | E73: 7.73 | F73: 7.8 | G73: 3 юн | H73: Рынина Е.И.
A74: 6 | B74: Варламов Вячеслав | D74: Приволжанин | E74: 8.02 | F74: 8.1 | H74: Мигунова Н.В.
A75: 7 | B75: Темиргалиев Саид | C75: 2005-11-11 | D75: КДЮСШ Авиатор | E75: 8.1 | F75: 8.1 | H75: Сафиуллина Г.Г.
A76: 8 | B76: Фельк Андрей | C76: 2006-07-06 | D76: КДЮСШ Авиатор | E76: 8.37 | F76: 8.4 | H76: Рынина Е.И.
A77: 9 | B77: Фаррахов Амир | C77: 2005-09-17 | D77: КДЮСШ Авиатор | E77: 8.41 | F77: 8.5 | H77: Сафиуллина Г.Г.
A78: 10 | B78: Петров Адель | C78: 2005-06-09 | D78: КДЮСШ Авиатор | E78: 8.42 | F78: 8.5 | H78: Сафиуллина Г.Г.
A79: 11 | B79: Шагбанов Дамир | D79: Приволжанин | E79: 8.51 | F79: 8.6 | H79: Мигунова Н.В.
A80: 12 | B80: Садыков Нурислам | C80: 2006-02-09 | D80: КДЮСШ Авиатор | E80: 8.55 | F80: 8.6 | H80: Сафиуллина Г.Г.
A81: 13 | B81: Кадыров Руслан | C81: 1905-06-27 | D81: КДЮСШ Авиатор | E81: 8.64 | F81: 8.7 | H81: Сафиуллина Г.Г.
A82: 14 | B82: Акберов Ильмар | D82: Приволжанин | E82: 9.05 | F82: 9.1 | H82: Мигунова Н.В.
A83: 15 | B83: Давлятов Артур | C83: 2005-04-21 | D83: КДЮСШ Авиатор | E83: 9.32 | F83: 9.4 | H83: Сафиуллина Г.Г.
A84: 16 | B84: Ахтямов Нияз | C84: 2005-06-08 | D84: КДЮСШ Авиатор | E84: 9.43 | F84: 9.5 | H84: Сафиуллина Г.Г.
A85: 17 | B85: Пырочкин Богдан | C85: 2006-10-11 | D85: КДЮСШ Авиатор | E85: 10.15 | F85: 10.2 | H85: Файсханов Р.Р.
B87: Юноши 2007-2008
A88: Р | B88: Фамилия Имя | C88: Дата рождения | D88: Организация | E88: 50 м | G88: Разряд | H88: Тренер
A89: 1 | B89: Шихаб Зеяд | D89: Приволжанин | E89: 7.78 | F89: 7.8 | G89: 3 юн | H89: Мигунова Н.В.
A90: 2 | B90: Зырянов Максим | D90: Приволжанин | E90: 8.12 | F90: 8.2 | H90: Мигунова Н.В.
A91: 2 | B91: Магдеев Ильфар | C91: 2007-07-13 | D91: КДЮСШ Авиатор | E91: 8.2 | F91: 8.2 | H91: Губанова В.В.
A92: 4 | B92: Галиев Султан | C92: 2007-05-29 | D92: КДЮСШ Авиатор | E92: 8.24 | F92: 8.3 | H92: Сафиуллина Г.Г.
A93: 4 | B93: Шермский Ян | C93: 2008-03-13 | D93: КДЮСШ Авиатор | E93: 8.28 | F93: 8.3 | H93: Губанова В.В.
A94: 4 | B94: Зудин Данил | C94: 2007-07-19 | D94: КДЮСШ Авиатор | E94: 8.29 | F94: 8.3 | H94: Сафиуллина Г.Г.
A95: 7 | B95: Поляков Иван | C95: 2008-03-18 | D95: КДЮСШ Авиатор | E95: 8.39 | F95: 8.4 | H95: Губанова В.В.
A96: 8 | B96: Боталов Егор | C96: 2009-09-10 | D96: КДЮСШ Авиатор | E96: 8.46 | F96: 8.5 | H96: Губанова В.В.
A97: 8 | B97: Алмаев Иван | C97: 2009-12-24 | D97: КДЮСШ Авиатор | E97: 8.49 | F97: 8.5 | H97: Губанова В.В.
A98: 8 | B98: Камалов Имиль | C98: 2007-08-10 | D98: КДЮСШ Авиатор | E98: 8.5 | F98: 8.5 | H98: Губанова В.В.
A99: 11 | B99: Щепанцов Артем | D99: Приволжанин | E99: 8.51 | F99: 8.6 | H99: Мигунова Н.В.
A100: 11 | B100: Аникин Никита | C100: 2008-01-07 | D100: КДЮСШ Авиатор | E100: 8.52 | F100: 8.6 | H100: Сафиуллина Г.Г.
A101: 11 | B101: Сабиров Джаудат | C101: 2008-08-20 | D101: КДЮСШ Авиатор | E101: 8.53 | F101: 8.6 | H101: Губанова В.В.
A102: 11 | B102: Губанов Данил | C102: 2007-12-06 | D102: КДЮСШ Авиатор | E102: 8.55 | F102: 8.6 | H102: Сафиуллина Г.Г.
A103: 15 | B103: Камалов Фаниль | C103: 2007-08-10 | D103: КДЮСШ Авиатор | E103: 8.67 | F103: 8.7 | H103: Губанова В.В.
A104: 15 | B104: Кутдусов Инсаф | C104: 2007-06-07 | D104: КДЮСШ Авиатор | E104: 8.7 | F104: 8.7 | H104: Губанова В.В.
A105: 17 | B105: Ермилов Кирилл | D105: Приволжанин | E105: 8.99 | F105: 9.0 | H105: Мигунова Н.В.
A106: 18 | B106: Панфутов Кирилл | C106: 2007-10-11 | D106: КДЮСШ Авиатор | E106: 9.09 | F106: 9.1 | H106: Сафиуллина Г.Г.
A107: 19 | B107: Кадыров Даниэль | C107: 2007-07-30 | D107: КДЮСШ Авиатор | E107: 9.19 | F107: 9.2 | H107: Губанова В.В.
A108: 20 | B108: Мухамадиев Ринат | C108: 2009-06-10 | D108: КДЮСШ Авиатор | E108: 9.21 | F108: 9.3 | H108: Губанова В.В.

Sheet 200
C1: Бег 200м
B2: Девушки 2003-2004
A3: Р | B3: Фамилия Имя | C3: Дата рожд | E3: 200м | F3: Рез-т | G3: Разряд | H3: Тренер
A4: 1 | B4: Хакимуллина Диана | C4: 2004-10-15 | D4: КДЮСШ Авиатор | E4: 31.84 | F4: 31.9 | G4: 1 юн | H4: Файсханов Р.Р.
A5: 2 | B5: Зарипова Регина | C5: 2004-12-12 | D5: КДЮСШ Авиатор | E5: 32.89 | F5: 32.9 | G5: 1 юн | H5: Файсханов Р.Р.
A6: 3 | B6: Хасанова Камиля | C6: 2004-12-07 | D6: КДЮСШ Авиатор | E6: 33.39 | F6: 33.4 | G6: 1 юн | H6: Сафиуллина Г.Г.
A7: 4 | B7: Хабибуллина Венера | C7: 2004-09-10 | D7: КДЮСШ Авиатор | E7: 34.1 | F7: 34.1 | G7: 2 юн | H7: Сафиуллина Г.Г.
A8: 5 | B8: Галимова Сабина | C8: 2004-12-03 | D8: КДЮСШ Авиатор | E8: 36.08 | F8: 36.1 | G8: 2 юн | H8: Сафиуллина Г.Г.
A9: 6 | B9: Низамиева Камилла | C9: 2004-12-05 | D9: КДЮСШ Авиатор | E9: 38.37 | F9: 38.4 | H9: Сафиуллина Г.Г.
A10: 7 | B10: Садыкова Бибинур | C10: 2004-06-10 | D10: КДЮСШ Авиатор | E10: 41.85 | F10: 41.9 | H10: Сафиуллина Г.Г.
B12: Девушки 2005-2006
A13: Р | B13: Фамилия Имя | C13: Дата рожд | E13: 200м | F13: Рез-т | G13: Разряд | H13: Тренер
A14: 1 | B14: Гадельшина Алсу | C14: 2005-03-28 | D14: КДЮСШ Авиатор | E14: 29.5 | F14: 29.5 | G14: 3 | H14: Рынина Е.И.
A15: 2 | B15: Квасова София | C15: 2006-08-01 | D15: КДЮСШ Авиатор | E15: 35.37 | F15: 35.4 | G15: 2 юн | H15: Сафиуллина Г.Г.
A16: 3 | B16: Миронова Елизавета | C16: 10.07.2006 | D16: КДЮСШ Авиатор | E16: 36.07 | F16: 36.1 | G16: 2 юн | H16: Сафиуллина Г.Г.
A17: 4 | B17: Фролова Виктория | D17: Приволжанин | E17: 39.35 | F17: 39.4 | G17: 3 юн | H17: Мигунова Н.В.
A18: 5 | B18: Статьёва Татьяна | C18: 2005-01-17 | D18: КДЮСШ Авиатор | E18: 41.4 | F18: 41.4 | H18: Сафиуллина Г.Г.
A19: 6 | B19: Щеглова Анастасия | C19: 2006-06-01 | D19: КДЮСШ Авиатор | E19: 42.42 | F19: 42.5 | H19: Губанова В.В.
A20: 7 | B20: Ермилова Елизавета | D20: Приволжанин | E20: 42.45 | F20: 42.5 | H20: Мигунова Н.В.
B22: Девушки 2007-2008
A23: Р | B23: Фамилия Имя | C23: Дата рожд | E23: 200м | F23: Рез-т | G23: Разряд | H23: Тренер
A24: 1 | B24: Амитова Алия | D24: Приволжанин | E24: 32.66 | F24: 32.7 | G24: 1 юн | H24: Мигунова Н.В.
A25: 2 | B25: Хайрутдинова Аделина | C25: 2007-07-18 | D25: КДЮСШ Авиатор | E25: 33.47 | F25: 33.5 | G25: 1 юн | H25: Рынина Е.И.
A26: 3 | B26: Сухотько София | C26: 2007-08-27 | D26: КДЮСШ Авиатор | E26: 35.24 | F26: 35.3 | G26: 2 юн | H26: Губанова В.В.
A27: 4 | B27: Хайруллина Азалия | C27: 15.11.2007 | D27: КДЮСШ Авиатор | E27: 36.92 | F27: 37.0 | G27: 3 юн | H27: Сафиуллина Г.Г.
A28: 5 | B28: Салина Милана | C28: 2008-03-19 | D28: КДЮСШ Авиатор | E28: 37.95 | F28: 38.0 | G28: 3 юн | H28: Рынина Е.И.
A29: 6 | B29: Фархутдинова Алиса | C29: 2007-07-23 | D29: КДЮСШ Авиатор | E29: 38.41 | F29: 38.5 | G29: 3 юн | H29: Губанова В.В.
A30: 7 | B30: Степанова Лия | C30: 2009-05-08 | D30: КДЮСШ Авиатор | E30: 38.42 | F30: 38.5 | G30: 3 юн | H30: Губанова В.В.
A31: 8 | B31: Галиуллина Виктория | D31: Приволжанин | E31: 38.48 | F31: 38.5 | G31: 3 юн | H31: Мигунова Н.В.
A32: 9 | B32: Хасанова Залифа | C32: 10.09.2007 | D32: КДЮСШ Авиатор | E32: 39.51 | F32: 39.6 | G32: 3 юн | H32: Сафиуллина Г.Г.
A33: 10 | B33: Грачева Софья | D33: Приволжанин | E33: 39.81 | F33: 39.9 | H33: Мигунова Н.В.
A34: 11 | B34: Жолобовская Арина | C34: 2009-12-20 | D34: КДЮСШ Авиатор | E34: 40.22 | F34: 40.3 | H34: Губанова В.В.
A35: 12 | B35: Валеева Альбина | C35: 2007-09-14 | D35: КДЮСШ Авиатор | E35: 41.18 | F35: 41.2 | H35: Губанова В.В.
A36: 13 | B36: Хадиева Диана | C36: 2009-01-21 | D36: КДЮСШ Авиатор | E36: 41.27 | F36: 41.3 | H36: Губанова В.В.
A37: 14 | B37: Назмутдинова Самина | C37: 2009-01-13 | D37: КДЮСШ Авиатор | E37: 42.04 | F37: 42.1 | H37: Губанова В.В.
A38: 15 | B38: Семенова Аэлита | C38: 2009-05-25 | D38: КДЮСШ Авиатор | E38: 43.59 | F38: 43.6 | H38: Губанова В.В.
A39: 16 | B39: Михайлова Елизавета | C39: 2008-03-04 | D39: КДЮСШ Авиатор | E39: 43.98 | F39: 44 | H39: Губанова В.В.
A40: 17 | B40: Ахметзянова Ангелина | C40: 2008-11-18 | D40: КДЮСШ Авиатор | E40: 45.72 | F40: 45.8 | H40: Губанова В.В.
A41: 18 | B41: Аскарова Камилла | C41: 2009-10-01 | D41: КДЮСШ Авиатор | E41: 47.34 | F41: 47.4 | H41: Сафиуллина Г.Г.
A42: 19 | B42: Лукоянова Арина | C42: 2009-06-10 | D42: КДЮСШ Авиатор | E42: 51.27 | F42: 51.3 | H42: Губанова В.В.
B44: Юноши 2003-2004
A45: Р | B45: Фамилия Имя | C45: Дата рожд | E45: 200м | F45: Рез-т | G45: Разряд | H45: Тренер
A46: 1 | B46: Капитонов Даниил | C46: 2004-10-22 | D46: 03-04 | E46: 31.31 | F46: 31.4 | G46: 3 юн | H46: Сафиуллина Г.Г.
A47: 2 | B47: Филипов Ярослав | C47: 2004-12-05 | D47: 03-04 | E47: 32.02 | F47: 32.1 | G47: 3 юн | H47: Сафиуллина Г.Г.
A48: 3 | B48: Якупов Артур | C48: 2004-01-04 | D48: 03-04 | E48: 33.09 | F48: 33.1 | G48: 3 юн | H48: Файсханов Р.Р.
B50: Юноши 2005-2006
A51: Р | B51: Фамилия Имя | C51: Дата рожд | E51: 200м | F51: Рез-т | G51: Разряд | H51: Тренер
A52: 1 | B52: Довгополый Дамир | C52: 2005-01-12 | D52: 05-06 | E52: 30.93 | F52: 31.0 | G52: 3 юн | H52: Файсханов Р.Р.
A53: 1 | B53: Биктагиров Ринат | C53: 2005-06-04 | D53: 05-06 | E53: 30.93 | F53: 31.0 | G53: 3 юн | H53: Сафиуллина Г.Г.
A54: 3 | B54: Маслов Данил | C54: 2006-11-09 | D54: 05-06 | E54: 31.2 | F54: 31.2 | G54: 3 юн | H54: Рынина Е.И.
A55: 4 | B55: Шагбанов Дамир | D55: 05-06 | E55: 33.97 | F55: 34.0 | G55: 3 юн | H55: Мигунова Н.В.
A56: 5 | B56: Варламов Вячеслав | D56: 05-06 | E56: 35.28 | F56: 35.3 | H56: Мигунова Н.В.
A57: 6 | B57: Кадыров Руслан | C57: 1905-06-27 | D57: 05-06 | E57: 35.9 | F57: 35.9 | H57: Сафиуллина Г.Г.
A58: 7 | B58: Садыков Нурислам | C58: 2006-02-09 | D58: 05-06 | E58: 36.74 | F58: 36.8 | H58: Сафиуллина Г.Г.
A59: 8 | B59: Акберов Ильмар | D59: 05-06 | E59: 37.06 | F59: 37.1 | H59: Мигунова Н.В.
A60: 9 | B60: Фельк Андрей | C60: 2006-07-06 | D60: 05-06 | E60: 38.48 | F60: 38.5 | H60: Рынина Е.И.
B62: Юноши 2007-2008
A63: Р | B63: Фамилия Имя | C63: Дата рожд | E63: 200м | F63: Рез-т | G63: Разряд | H63: Тренер
A64: 1 | B64: Зырянов Максим | D64: 07-08 | E64: 34.63 | F64: 34.7 | H64: Мигунова Н.В.
A65: 2 | B65: Шихаб Зеяд | D65: 07-08 | E65: 35.08 | F65: 35.1 | H65: Мигунова Н.В.
A66: 3 | B66: Магдеев Ильфар | C66: 2007-07-13 | D66: 07-08 | E66: 36.03 | F66: 36.1 | H66: Губанова В.В.
A67: 4 | B67: Камалов Имиль | C67: 2007-08-10 | D67: 07-08 | E67: 36.16 | F67: 36.2 | H67: Губанова В.В.
A68: 5 | B68: Алмаев Иван | C68: 2009-12-24 | D68: 07-08 | E68: 36.38 | F68: 36.4 | H68: Губанова В.В.
A69: 6 | B69: Поляков Иван | C69: 2008-03-18 | D69: 07-08 | E69: 36.39 | F69: 36.4 | H69: Губанова В.В.
A70: 7 | B70: Губанов Данил | C70: 2007-12-06 | D70: 07-08 | E70: 36.98 | F70: 37 | H70: Сафиуллина Г.Г.
A71: 8 | B71: Шерминский Ян | C71: 2008-03-13 | D71: 07-08 | E71: 37.41 | F71: 37.5 | H71: Губанова В.В.
A72: 9 | B72: Аникин Никита | C72: 2008-01-07 | D72: 07-08 | E72: 37.7 | F72: 37.7 | H72: Сафиуллина Г.Г.
A73: 10 | B73: Щепанцов Артем | D73: 07-08 | E73: 38.14 | F73: 38.2 | H73: Мигунова Н.В.
A74: 11 | B74: Камалов Фаниль | C74: 2007-08-10 | D74: 07-08 | E74: 38.56 | F74: 38.6 | H74: Губанова В.В.
A75: 12 | B75: Боталов Егор | C75: 2009-09-10 | D75: 07-08 | E75: 38.64 | F75: 38.7 | H75: Губанова В.В.
A76: 13 | B76: Сабиров Джаудат | C76: 2008-08-20 | D76: 07-08 | E76: 39.05 | F76: 39.1 | H76: Губанова В.В.
A77: 14 | B77: Ермилов Кирилл | D77: 07-08 | E77: 41.31 | F77: 41.4 | H77: Мигунова Н.В.
A78: 15 | B78: Мухамадиев Ринат | C78: 2009-06-10 | D78: 07-08 | E78: 42.19 | F78: 42.2 | H78: Губанова В.В.
A79: 16 | B79: Кутдусов Инсаф | C79: 2007-06-07 | D79: 07-08 | E79: 43.29 | F79: 43.3 | H79: Губанова В.В.
A80: 17 | B80: Кадыров Даниэль | C80: 2007-07-30 | D80: 07-08 | E80: 43.38 | F80: 43.4 | H80: Губанова В.В.

Sheet ядро
D1: толкание ядра
B2: Девушки 2003-2004 | C2: 3 кг
A3: Р | B3: Фамилия Имя | C3: Дата рожд | E3: ядро | F3: разряд | G3: тренер
A4: 1 | B4: Бахитова Эмилия | C4: 2003-10-20 | D4: КДЮСШ Авиатор | E4: 5.52 | G4: Файсханов Р.Р.
A5: 2 | B5: Низамиева Камилла | C5: 2004-12-05 | D5: КДЮСШ Авиатор | E5: 5.34 | G5: Сафиуллина Г.Г.
B7: Девушки 2005-2006 | C7: 3 кг
A8: Р | B8: Фамилия Имя | C8: Дата рожд | E8: ядро | F8: разряд | G8: тренер
A9: 1 | B9: Пытина Евгения | C9: 2006-07-19 | D9: КДЮСШ Авиатор | E9: 5.06 | G9: Сафиуллина Г.Г.
A10: 2 | B10: Статьёва Татьяна | C10: 2005-01-17 | D10: КДЮСШ Авиатор | E10: 4.67 | G10: Сафиуллина Г.Г.
B12: Девушки 2007-2008 | C12: 2кг
A13: Р | B13: Фамилия Имя | C13: Дата рожд | E13: ядро | F13: разряд | G13: тренер
A14: 1 | B14: Аскарова Камилла | C14: 2009-10-01 | D14: КДЮСШ Авиатор | E14: 4.12 | G14: Сафиуллина Г.Г.
B17: Юноши 2003-2004 | C17: 4 кг
A18: Р | B18: Фамилия Имя | C18: Дата рожд | E18: ядро | F18: разряд | G18: тренер
A19: 1 | B19: Багаманов Ильдар | C19: 2004-11-17 | D19: КДЮСШ Авиатор | E19: 5.55 | G19: Сафиуллина Г.Г.
B21: Юноши 2005-2006 | C21: 4 кг
A22: Р | B22: Фамилия Имя | C22: Дата рожд | E22: ядро | F22: разряд | G22: тренер
A23: 1 | B23: Пырочкин Богдан | C23: 2006-10-11 | D23: КДЮСШ Авиатор | E23: 5.98 | G23: Файсханов Р.Р.
A24: 2 | B24: Петров Адель | C24: 2005-06-09 | D24: КДЮСШ Авиатор | E24: 5.41 | G24: Сафиуллина Г.Г.
A25: 3 | B25: Давлятов Артур | C25: 2005-04-21 | D25: КДЮСШ Авиатор | E25: 5.4 | G25: Сафиуллина Г.Г.
A26: 4 | B26: Ахтямов Нияз | C26: 2005-06-08 | D26: КДЮСШ Авиатор | E26: 5.38 | G26: Сафиуллина Г.Г.
A27: 5 | B27: Фаррахов Амир | C27: 2005-09-17 | D27: КДЮСШ Авиатор | E27: 5.15 | G27: Сафиуллина Г.Г.

Sheet высота
D1: прыжок в высоту
B3: Юноши 2003-2004
B4: Фамилия Имя | C4: Дата рожд | H4: высота | I4: разряд | J4: высота | K4: тренер
A5: 1 | B5: Симушкин Булат | C5: 2004-12-19 | D5: 03-04 | H5: 100 | J5: 100 | K5: Сафиуллина Г.Г.
B7: Юноши 2005-2006
B8: Фамилия Имя | C8: Дата рожд | H8: высота | I8: разряд | J8: высота | K8: тренер
A9: 1 | B9: Хайруллов Айдар | C9: 2005-11-06 | D9: 05-06 | H9: 125 | J9: 125 | K9: Файсханов Р.Р.
A10: 2 | B10: Егоренков Дмитрий | C10: 2005-01-24 | D10: 05-06 | H10: 120 | J10: 120 | K10: Сафиуллина Г.Г.
A11: 3 | B11: Петров Адель | C11: 2005-06-09 | D11: 05-06 | H11: 120 | J11: 120 | K11: Сафиуллина Г.Г.
A12: 4 | B12: Темиргалиев Саид | C12: 2005-11-11 | D12: 05-06 | H12: 115 | J12: 115 | K12: Сафиуллина Г.Г.
A13: 5 | B13: Фаррахов Амир | C13: 2005-09-17 | D13: 05-06 | H13: 110 | J13: 110 | K13: Сафиуллина Г.Г.
A14: 6 | B14: Садыков Нурислам | C14: 2006-02-09 | D14: 05-06 | H14: 110 | J14: 110 | K14: Сафиуллина Г.Г.
B16: Юноши 2007-2008
B17: Фамилия Имя | C17: Дата рожд | H17: высота | I17: разряд | J17: высота | K17: тренер
A18: 1 | B18: Зудин Данил | C18: 2007-07-19 | D18: 07-08 | H18: 110 | J18: 110 | K18: Сафиуллина Г.Г.
A19: 2 | B19: Панфутов Кирилл | C19: 2007-10-11 | D19: 07-08 | H19: 110 | J19: 110 | K19: Сафиуллина Г.Г.
A20: 3 | B20: Галиев Султан | C20: 2007-05-29 | D20: 07-08 | H20: 105 | J20: 105 | K20: Сафиуллина Г.Г.
B30: Многоборье №5 | D30: Бег 50м + прыжок в высоту
B31: Девушки 2003-2004
B32: Фамилия Имя | C32: Дата рожд | H32: высота | I32: разряд | J32: высота | K32: тренер
A33: 1 | B33: Чувашаева Малика | C33: 2004-12-09 | D33: 03-04 | H33: 120 | I33: 2 юн | J33: 120 | K33: Файсханов Р.Р.
A34: 2 | B34: Хасанова Камиля | C34: 2004-12-07 | D34: 03-04 | H34: 115 | I34: 3 юн | J34: 115 | K34: Сафиуллина Г.Г.
B36: Девушки 2005-2006
B37: Фамилия Имя | C37: Дата рожд | H37: высота | I37: разряд | J37: высота | K37: тренер
A38: 1 | B38: Нежинская Алина | C38: 2005-02-27 | D38: 05-06 | H38: 125 | I38: 2 юн | J38: 125 | K38: Рынина Е.И.
A39: 2 | B39: Ибрагимова Ильвина | C39: 2005-11-06 | D39: 05-06 | H39: 115 | I39: 3 юн | J39: 115 | K39: Сафиуллина Г.Г.
A40: 3 | B40: Пытина Евгения | C40: 2006-07-19 | D40: 05-06 | H40: 115 | I40: 3 юн | J40: 115 | K40: Сафиуллина Г.Г.
A41: 4 | B41: Шафигуллина Зульфия | C41: 2005-07-05 | D41: 05-06 | H41: 105 | J41: 105 | K41: Сафиуллина Г.Г.
A42: 5 | B42: Гимадиева Алсу | C42: 2005-07-19 | D42: 05-06 | H42: 95 | J42: 95 | K42: Сафиуллина Г.Г.
B44: Девушки 2007-2008
B45: Фамилия Имя | C45: Дата рожд | H45: высота | I45: разряд | J45: высота | K45: тренер
A46: 1 | B46: Дрягина София | C46: 2008-02-21 | D46: 07-08 | H46: 120 | I46: 2 юн | J46: 120 | K46: Файсханов Р.Р.
A47: 2 | B47: Хайруллина Азалия | C47: 15.11.2007 | D47: 07-08 | H47: 115 | I47: 3 юн | J47: 115 | K47: Сафиуллина Г.Г.
A48: 3 | B48: Хасанова Залифа | C48: 10.09.2007 | D48: 07-08 | H48: 100 | J48: 100 | K48: Сафиуллина Г.Г.

Sheet длина
D1: Прыжок в длину
B2: Девушки 2003-2004
A3: Р | B3: Фамилия Имя | C3: Дата рожд | D3: Организация | E3: 1 | F3: 2 | G3: 3 | H3: Рез-т | I3: Разряд | J3: тренер
A4: 1 | B4: Галимова Сабина | C4: 2004-12-03 | D4: КДЮСШ Авиатор | E4: х | F4: х | G4: 327 | H4: 327 | J4: Сафиуллина Г.Г.
A5: 2 | B5: Аскарова Эльвина | C5: 2004-12-23 | D5: КДЮСШ Авиатор | E5: х | F5: 303 | G5: 314 | H5: 314 | J5: Сафиуллина Г.Г.
A6: 3 | B6: Ягудина Раилина | C6: 2004-12-01 | D6: КДЮСШ Авиатор | E6: х | F6: х | G6: 286 | H6: 286 | J6: Сафиуллина Г.Г.
A7: 4 | B7: Гафарова Динара | C7: 2004-04-16 | D7: КДЮСШ Авиатор | E7: х | F7: х | G7: 275 | H7: 275 | J7: Сафиуллина Г.Г.
B9: Девушки 2005-2006
A10: Р | B10: Фамилия Имя | C10: Дата рожд | D10: Организация | E10: 1 | F10: 2 | G10: 3 | H10: Рез-т | I10: Разряд | J10: тренер
A11: 1 | B11: Гадельшина Алсу | C11: 2005-03-28 | D11: КДЮСШ Авиатор | E11: 452 | F11: 455 | G11: х | H11: 455 | I11: 1 юн | J11: Рынина Е.И.
A12: 2 | B12: Нежинская Алина | C12: 2005-02-27 | D12: КДЮСШ Авиатор | E12: х | F12: 378 | G12: 364 | H12: 378 | I12: 3 юн | J12: Рынина Е.И.
A13: 3 | B13: Насырова Диана | C13: 2005-10-05 | D13: КДЮСШ Авиатор | E13: 250 | F13: 375 | G13: 247 | H13: 375 | I13: 3 юн | J13: Сафиуллина Г.Г.
A14: 5 | B14: Ибрагимова Ильвина | C14: 2005-11-06 | D14: КДЮСШ Авиатор | E14: х | F14: 319 | G14: 287 | H14: 319 | J14: Сафиуллина Г.Г.
A15: 6 | B15: Охотникова София | C15: 2005-01-01 | D15: КДЮСШ Авиатор | E15: 311 | F15: х | G15: 301 | H15: 311 | J15: Сафиуллина Г.Г.
A16: 7 | B16: Квасова София | C16: 2006-08-01 | D16: КДЮСШ Авиатор | E16: х | F16: 285 | G16: 287 | H16: 287 | J16: Сафиуллина Г.Г.
A17: 8 | B17: Яббарова Зульфия | C17: 2005-03-23 | D17: КДЮСШ Авиатор | E17: х | F17: 260 | G17: 252 | H17: 260 | J17: Сафиуллина Г.Г.
B18: Ахмадеева Зарина | C18: 2005-03-31 | D18: КДЮСШ Авиатор | E18: х | F18: х | G18: х | H18: х | J18: Сафиуллина Г.Г.
B19: Щеглова Анастасия | C19: 2006-06-01 | D19: КДЮСШ Авиатор | E19: х | F19: х | G19: х | H19: х | J19: Губанова В.В.
B21: Девушки 2007-2008
A22: Р | B22: Фамилия Имя | C22: Дата рожд | D22: Организация | E22: 1 | F22: 2 | G22: 3 | H22: Рез-т | I22: Разряд | J22: тренер
A23: 1 | B23: Хайрутдинова Аделина | C23: 2007-07-18 | D23: 07-08 | E23: 345 | F23: 360 | G23: х | H23: 360 | I23: 3 юн | J23: Рынина Е.И.
A24: 2 | B24: Салина Милана | C24: 2008-03-19 | D24: КДЮСШ Авиатор | E24: 220 | F24: 335 | G24: х | H24: 335 | J24: Рынина Е.И.
A25: 3 | B25: Сухотько София | C25: 2007-08-27 | D25: КДЮСШ Авиатор | E25: 304 | F25: 278 | G25: 295 | H25: 304 | J25: Губанова В.В.
A26: 4 | B26: Бадякина Дарья | C26: 2007-03-20 | D26: 07-08 | E26: 234 | F26: 300 | G26: х | H26: 300 | J26: Сафиуллина Г.Г.
A27: 5 | B27: Зиятдинова Аделя | C27: 2008-08-20 | D27: 07-08 | E27: 200 | F27: 297 | G27: 288 | H27: 297 | J27: Сафиуллина Г.Г.
A28: 6 | B28: Валеева Альбина | C28: 2007-09-14 | D28: КДЮСШ Авиатор | E28: х | F28: х | G28: 284 | H28: 284 | J28: Губанова В.В.
A29: 7 | B29: Хадиева Диана | C29: 2009-01-21 | D29: КДЮСШ Авиатор | E29: 201 | F29: 275 | G29: 280 | H29: 280 | J29: Губанова В.В.
A30: 8 | B30: Жолобовская Арина | C30: 2009-12-20 | D30: КДЮСШ Авиатор | E30: х | F30: 280 | G30: 270 | H30: 280 | J30: Губанова В.В.
A31: 9 | B31: Семенова Аэлита | C31: 2009-05-25 | D31: КДЮСШ Авиатор | E31: 255 | F31: 275 | G31: 278 | H31: 278 | J31: Губанова В.В.
A32: 10 | B32: Степанова Лия | C32: 2009-05-08 | D32: КДЮСШ Авиатор | E32: х | F32: 268 | G32: 256 | H32: 268 | J32: Губанова В.В.
A33: 11 | B33: Назмутдинова Самина | C33: 2009-01-13 | D33: КДЮСШ Авиатор | E33: 263 | F33: 266 | G33: 252 | H33: 266 | J33: Губанова В.В.
A34: 12 | B34: Михайлова Елизавета | C34: 2008-03-04 | D34: КДЮСШ Авиатор | E34: 233 | F34: 226 | G34: 225 | H34: 233 | J34: Губанова В.В.
B35: Фархутдинова Алиса | C35: 2007-07-23 | D35: КДЮСШ Авиатор | E35: х | F35: х | G35: х | H35: 0 | J35: Губанова В.В.
B36: Ахметзянова Ангелина | C36: 2008-11-18 | D36: КДЮСШ Авиатор | E36: х | F36: х | G36: х | H36: 0 | J36: Губанова В.В.
B38: Многоборье №5 | D38: Бег 50м + прыжок в длину
B39: Юноши 2003-2004
A40: Р | B40: Фамилия Имя | C40: Дата рожд | D40: Организация | E40: 1 | F40: 2 | G40: 3 | H40: Рез-т | I40: Разряд | J40: тренер
A41: 1 | B41: Филипов Ярослав | C41: 2004-12-05 | D41: 03-04 | E41: х | F41: 372 | G41: 337 | H41: 372 | J41: Сафиуллина Г.Г.
A42: 2 | B42: Багаманов Ильдар | C42: 2004-11-17 | D42: 03-04 | E42: 288 | F42: х | G42: 275 | H42: 288 | J42: Сафиуллина Г.Г.
B44: Юноши 2005-2006
A45: Р | B45: Фамилия Имя | C45: Дата рожд | D45: Организация | E45: 1 | F45: 2 | G45: 3 | H45: Рез-т | I45: Разряд | J45: тренер
A46: 1 | B46: Садыков Нурислам | C46: 2006-02-09 | D46: 05-06 | E46: х | F46: х | G46: 355 | H46: 355 | J46: Сафиуллина Г.Г.
A47: 2 | B47: Кадыров Руслан | C47: 2005-06-27 | D47: 05-06 | E47: 332 | F47: 312 | G47: 312 | H47: 332 | J47: Сафиуллина Г.Г.
A48: 3 | B48: Фельк Андрей | C48: 2006-07-06 | D48: 05-06 | E48: 316 | F48: 305 | G48: х | H48: 316 | J48: Рынина Е.И.
A49: 4 | B49: Ахтямов Нияз | C49: 2005-06-08 | D49: 05-06 | E49: х | F49: 285 | G49: 260 | H49: 285 | J49: Сафиуллина Г.Г.
A50: 5 | B50: Давлятов Артур | C50: 2005-04-21 | D50: 05-06 | E50: 257 | F50: 267 | G50: 268 | H50: 268 | J50: Сафиуллина Г.Г.
B51: Маслов Данил | C51: 2006-11-09 | D51: 05-06 | E51: х | F51: х | G51: х | H51: 0 | J51: Рынина Е.И.
B53: Юноши 2007-2008
A54: Р | B54: Фамилия Имя | C54: Дата рожд | D54: Организация | E54: 1 | F54: 2 | G54: 3 | H54: Рез-т | I54: Разряд | J54: тренер
A55: 1 | B55: Магдеев Ильфар | C55: 2007-07-13 | D55: КДЮСШ Авиатор | E55: 312 | F55: 325 | G55: 343 | H55: 343 | J55: Губанова В.В.
A56: 2 | B56: Поляков Иван | C56: 2008-03-18 | D56: КДЮСШ Авиатор | E56: 320 | F56: 310 | G56: х | H56: 320 | J56: Губанова В.В.
A57: 3 | B57: Пугачев Иван | C57: 2008-08-12 | D57: КДЮСШ Авиатор | E57: 303 | F57: 318 | G57: 310 | H57: 318 | J57: Губанова В.В.
A58: 4 | B58: Алмаев Иван | C58: 2009-12-24 | D58: КДЮСШ Авиатор | E58: 318 | F58: 275 | G58: 296 | H58: 318 | J58: Губанова В.В.
A59: 5 | B59: Боталов Егор | C59: 2009-09-10 | D59: КДЮСШ Авиатор | E59: 306 | F59: 315 | G59: 297 | H59: 315 | J59: Губанова В.В.
A60: 6 | B60: Кадыров Даниэль | C60: 2007-07-30 | D60: КДЮСШ Авиатор | E60: 305 | F60: 295 | G60: 283 | H60: 305 | J60: Губанова В.В.
A61: 7 | B61: Шерминский Ян | C61: 2008-03-13 | D61: КДЮСШ Авиатор | E61: 270 | F61: 297 | G61: 255 | H61: 297 | J61: Губанова В.В.
A62: 8 | B62: Сабиров Джаудат | C62: 2008-08-20 | D62: КДЮСШ Авиатор | E62: 295 | F62: 290 | G62: 274 | H62: 295 | J62: Губанова В.В.
A63: 9 | B63: Салиев Ратмир | C63: 2008-12-18 | D63: КДЮСШ Авиатор | E63: 272 | F63: 283 | G63: 288 | H63: 288 | J63: Сафиуллина Г.Г.
A64: 10 | B64: Губанов Данил | C64: 2007-12-06 | D64: КДЮСШ Авиатор | E64: 282 | F64: 280 | G64: 275 | H64: 282 | J64: Сафиуллина Г.Г.
A65: 11 | B65: Мухамадиев Ринат | C65: 2009-06-10 | D65: КДЮСШ Авиатор | E65: 270 | F65: 266 | G65: 260 | H65: 270 | J65: Губанова В.В.

Sheet 300
C1: Бег 300м
B2: Девушки 2003-2004
A3: М | B3: Фамилия Имя | C3: Дата рожд | H3: 300 | J3: разряд | K3: тренер
A4: 1 | B4: Чувашаева Малика | C4: 2004-12-09 | H4: 51.1 | J4: 1 юн | K4: Файсханов Р.Р.
B6: Девушки 2005-2006
A7: М | B7: Фамилия Имя | C7: Дата рожд | H7: 300 | J7: разряд | K7: тренер
A8: 1 | B8: Миронова Елизавета | C8: 10.07.2006 | H8: 59.9 | J8: 3 юн | K8: Сафиуллина Г.Г.
A9: 2 | B9: Щеглова Анастасия | C9: 2006-06-01 | H9: 1.04,0 | K9: Губанова В.В.
B11: Девушки 2007-2008
A12: М | B12: Фамилия Имя | C12: Дата рожд | H12: 300 | J12: разряд | K12: тренер
A13: 1 | B13: Амитова Алия | H13: 51.7 | J13: 1 юн | K13: Мигунова Н.В.
A14: 2 | B14: Дрягина София | C14: 2008-02-21 | H14: 56.9 | J14: 2 юн | K14: Файсханов Р.Р.
A15: 3 | B15: Попова Диана | H15: 57.9 | J15: 2 юн | K15: Губанова В.В.
A16: 4 | B16: Сухотько София | C16: 2007-08-27 | H16: 59.1 | J16: 3 юн | K16: Губанова В.В.
A17: 5 | B17: Фархутдинова Алиса | C17: 2007-07-23 | H17: 1.00,7 | J17: 3 юн | K17: Губанова В.В.
A18: 6 | B18: Степанова Лия | C18: 2009-05-08 | H18: 1.00,1 | J18: 3 юн | K18: Губанова В.В.
A19: 7 | B19: Галиуллина Виктория | H19: 1.01,1 | J19: 3 юн | K19: Мигунова Н.В.
A20: 8 | B20: Хадиева Диана | C20: 2009-01-21 | H20: 1.03,9 | K20: Губанова В.В.
A21: 9 | B21: Назмутдинова Самина | C21: 2009-01-13 | H21: 1.06,0 | K21: Губанова В.В.
A22: 10 | B22: Семенова Аэлита | C22: 2009-05-25 | H22: 1.06,2 | K22: Губанова В.В.
A23: 11 | B23: Жолобовская Арина | C23: 2009-12-20 | H23: 1.07,9 | K23: Губанова В.В.
A24: 12 | B24: Михайлова Елизавета | C24: 2008-03-04 | H24: 1.09,6 | K24: Губанова В.В.
B26: Юноши 2003-2004
A27: М | B27: Фамилия Имя | C27: Дата рожд | H27: 300 | J27: разряд | K27: тренер
A28: 1 | B28: Капитонов Даниил | C28: 2004-10-22 | D28: 03-04 | H28: 48.1 | J28: 2 юн | K28: Сафиуллина Г.Г.
A29: 2 | B29: Якупов Артур | C29: 2004-01-04 | H29: 52.1 | J29: 3 юн | K29: Файсханов Р.Р.
A30: 3 | B30: Симушкин Булат | C30: 2004-12-19 | H30: 54.0 | K30: Сафиуллина Г.Г.
B32: Юноши 2005-2006
A33: М | B33: Фамилия Имя | C33: Дата рожд | H33: 300 | J33: разряд | K33: тренер
A34: 1 | B34: Егоренков Дмитрий | C34: 2005-01-24 | H34: 46.9 | J34: 2 юн | K34: Сафиуллина Г.Г.
A35: 2 | B35: Биктагиров Ринат | C35: 2005-06-04 | H35: 50.0 | J35: 3 юн | K35: Сафиуллина Г.Г.
A36: 2 | B36: Темиргалиев Саид | C36: 2005-11-11 | H36: 50.0 | J36: 3 юн | K36: Сафиуллина Г.Г.
A37: 4 | B37: Хайруллов Айдар | C37: 2005-11-06 | H37: 50.6 | J37: 3 юн | K37: Файсханов Р.Р.
A38: 5 | B38: Петров Адель | C38: 2005-06-09 | H38: 59.3 | K38: Сафиуллина Г.Г.
B40: Юноши 2007-2008
A41: М | B41: Фамилия Имя | C41: Дата рожд | H41: 300 | J41: разряд | K41: тренер
A42: 1 | B42: Шихаб Зеяд | H42: 55.1 | K42: Мигунова Н.В.
A43: 2 | B43: Зырянов Максим | H43: 55.6 | K43: Мигунова Н.В.
A44: 3 | B44: Аникин Никита | C44: 2008-01-07 | H44: 57.1 | K44: Сафиуллина Г.Г.
A45: 4 | B45: Боталов Егор | C45: 2009-09-10 | H45: 58.0 | K45: Губанова В.В.
A46: 5 | B46: Камалов Имиль | C46: 2007-08-10 | H46: 58.1 | K46: Губанова В.В.
A47: 6 | B47: Алмаев Иван | C47: 2009-12-24 | H47: 58.7 | K47: Губанова В.В.
A48: 7 | B48: Сабиров Джаудат | C48: 2008-08-20 | H48: 59.2 | K48: Губанова В.В.
A49: 8 | B49: Шерминский Ян | C49: 2008-03-13 | H49: 59.6 | K49: Губанова В.В.
A50: 9 | B50: Пугачев Иван | C50: 2008-08-12 | H50: 1.01,3 | K50: Губанова В.В.
A51: 10 | B51: Мухамадиев Ринат | C51: 2009-06-10 | H51: 1.12,4 | K51: Губанова В.В.
